[Event "Titled Tuesday Blitz August 23 Early 2022"]
[White "Martin Carmona, Gaston Manuel"]
[Black "Urazayev, Arystanbek"]
[WhiteFideId "22284567"]
[BlackFideId "13709810"]
[WhiteElo "2162"]
[BlackElo "2441"]
[Result "1-0"]
[Round "01"]
[TimeControl "180+1"]
[Date "2022.08.23"]
[WhiteClock "0:00:12"]
[BlackClock "0:00:58"]

1. d4 {[%clk 0:02:58]}  d5 {[%clk 0:02:55]} 2. c4 {[%clk 0:02:57]}  c6 {[%clk 0:02:56]} 3. Nc3 {[%clk 0:02:54]}  Nf6 {[%clk 0:02:56]} 4. Nf3 {[%clk 0:02:54]}  e6 {[%clk 0:02:56]} 5. e3 {[%clk 0:02:52]}  Nbd7 {[%clk 0:02:56]} 6. Be2 {[%clk 0:02:53]}  Bd6 {[%clk 0:02:56]} 7. b3 {[%clk 0:02:52]}  O-O {[%clk 0:02:56]} 8. Bb2 {[%clk 0:02:53]}  b6 {[%clk 0:02:56]} 9. O-O {[%clk 0:02:54]}  Bb7 {[%clk 0:02:56]} 10. Qc2 {[%clk 0:02:54]}  Qe7 {[%clk 0:02:55]} 11. e4 {[%clk 0:02:51]}  dxe4 {[%clk 0:02:52]} 12. Nxe4 {[%clk 0:02:52]}  Nxe4 {[%clk 0:02:52]} 13. Qxe4 {[%clk 0:02:53]}  Rfe8 {[%clk 0:02:43]} 14. Bd3 {[%clk 0:02:51]}  Nf8 {[%clk 0:02:41]} 15. c5 {[%clk 0:02:49]}  bxc5 {[%clk 0:02:27]} 16. dxc5 {[%clk 0:02:50]}  Bxc5 {[%clk 0:02:25]} 17. Rac1 {[%clk 0:02:48]}  Bd6 {[%clk 0:02:24]} 18. Qg4 {[%clk 0:02:43]}  f6 {[%clk 0:02:24]} 19. Nd4 {[%clk 0:02:38]}  Be5 {[%clk 0:02:14]} 20. Nxc6 {[%clk 0:02:33]}  Bxc6 {[%clk 0:02:11]} 21. Bxe5 {[%clk 0:02:34]}  Bxg2 {[%clk 0:02:07]} 22. Rc7 {[%clk 0:02:22]}  Nd7 {[%clk 0:02:07]} 23. Qh4 {[%clk 0:01:38]}  g5 {[%clk 0:01:55]} 24. Qxh7+ {[%clk 0:01:04]}  Qxh7 {[%clk 0:01:54]} 25. Bxh7+ {[%clk 0:01:05]}  Kxh7 {[%clk 0:01:55]} 26. Rxd7+ {[%clk 0:01:05]}  Kg6 {[%clk 0:01:56]} 27. Kxg2 {[%clk 0:01:05]}  fxe5 {[%clk 0:01:54]} 28. Rc1 {[%clk 0:01:01]}  a5 {[%clk 0:01:51]} 29. Rc5 {[%clk 0:00:53]}  Kf6 {[%clk 0:01:47]} 30. Rb7 {[%clk 0:00:51]}  a4 {[%clk 0:01:45]} 31. b4 {[%clk 0:00:51]}  a3 {[%clk 0:01:45]} 32. Rcc7 {[%clk 0:00:42]}  Kf5 {[%clk 0:01:46]} 33. b5 {[%clk 0:00:39]}  Reb8 {[%clk 0:01:42]} 34. b6 {[%clk 0:00:38]}  Rxb7 {[%clk 0:01:38]} 35. Rxb7 {[%clk 0:00:39]}  Ra4 {[%clk 0:01:36]} 36. Rf7+ {[%clk 0:00:30]}  Ke4 {[%clk 0:01:35]} 37. b7 {[%clk 0:00:17]}  Rb4 {[%clk 0:01:35]} 38. Kg3 {[%clk 0:00:18]}  g4 {[%clk 0:01:19]} 39. Kxg4 {[%clk 0:00:17]}  Kd3+ {[%clk 0:01:20]} 40. Kg5 {[%clk 0:00:17]}  Kc2 {[%clk 0:01:20]} 41. h4 {[%clk 0:00:10]}  Kb2 {[%clk 0:01:20]} 42. h5 {[%clk 0:00:11]}  Kxa2 {[%clk 0:01:21]} 43. h6 {[%clk 0:00:11]}  Kb1 {[%clk 0:01:19]} 44. h7 {[%clk 0:00:11]}  a2 {[%clk 0:01:20]} 45. Rd7 {[%clk 0:00:08]}  Kc2 {[%clk 0:01:13]} 46. Rc7+ {[%clk 0:00:03]}  Kb3 {[%clk 0:01:06]} 47. Rc1 {[%clk 0:00:02]}  Rc4 {[%clk 0:01:00]} 48. Ra1 {[%clk 0:00:02]}  Rb4 {[%clk 0:01:00]} 49. Rxa2 {[%clk 0:00:02]}  Rxb7 {[%clk 0:01:01]} 50. h8=Q {[%clk 0:00:02]}  Kxa2 {[%clk 0:01:01]} 51. Qxe5 {[%clk 0:00:02]}  Rb2 {[%clk 0:00:58]} 52. f4 {[%clk 0:00:02]}  Rg2+ {[%clk 0:00:57]} 53. Kf6 {[%clk 0:00:02]}  Ka3 {[%clk 0:00:56]} 54. Qxe6 {[%clk 0:00:03]}  Kb4 {[%clk 0:00:56]} 55. f5 {[%clk 0:00:03]}  Kc5 {[%clk 0:00:55]} 56. Qe5+ {[%clk 0:00:04]}  Kb6 {[%clk 0:00:55]} 57. Qe6+ {[%clk 0:00:05]}  Kc5 {[%clk 0:00:55]} 58. Qe5+ {[%clk 0:00:06]}  Kb6 {[%clk 0:00:56]} 59. Qd4+ {[%clk 0:00:06]}  Kc7 {[%clk 0:00:56]} 60. Qe4 {[%clk 0:00:07]}  Rd2 {[%clk 0:00:55]} 61. Qe7+ {[%clk 0:00:08]}  Rd7 {[%clk 0:00:56]} 62. Qe6 {[%clk 0:00:09]}  Kd8 {[%clk 0:00:55]} 63. Qxd7+ {[%clk 0:00:09]}  Kxd7 {[%clk 0:00:56]} 64. Kg7 {[%clk 0:00:09]}  Ke8 {[%clk 0:00:56]} 65. f6 {[%clk 0:00:10]}  Kd7 {[%clk 0:00:57]} 66. f7 {[%clk 0:00:11]}  Ke6 {[%clk 0:00:58]} 67. f8=Q {[%clk 0:00:12]} 1-0


[Site "https://www.chess.com"]

[Event "Titled Tuesday Blitz August 23 Early 2022"]
[White "Mendez Fortes, Eduardo Jesus"]
[Black "Hambleton, Aman"]
[WhiteFideId "3502376"]
[BlackFideId "2606577"]
[WhiteElo "2307"]
[BlackElo "2538"]
[Result "0-1"]
[Round "01"]
[TimeControl "180+1"]
[Date "2022.08.23"]
[WhiteClock "0:00:23"]
[BlackClock "0:00:05"]

1. e4 {[%clk 0:02:59]}  c5 {[%clk 0:02:57]} 2. Nf3 {[%clk 0:02:59]}  e6 {[%clk 0:02:57]} 3. d4 {[%clk 0:02:59]}  cxd4 {[%clk 0:02:57]} 4. Nxd4 {[%clk 0:03:00]}  a6 {[%clk 0:02:57]} 5. c4 {[%clk 0:03:01]}  Nf6 {[%clk 0:02:54]} 6. Nc3 {[%clk 0:03:01]}  Qc7 {[%clk 0:02:52]} 7. Be2 {[%clk 0:02:59]}  Bb4 {[%clk 0:02:42]} 8. Qd3 {[%clk 0:02:59]}  Nc6 {[%clk 0:01:42]} 9. O-O {[%clk 0:02:53]}  O-O {[%clk 0:01:35]} 10. Nf3 {[%clk 0:02:52]}  h6 {[%clk 0:01:26]} 11. h3 {[%clk 0:02:32]}  Rd8 {[%clk 0:01:01]} 12. Be3 {[%clk 0:02:24]}  Bxc3 {[%clk 0:00:46]} 13. bxc3 {[%clk 0:02:25]}  d6 {[%clk 0:00:47]} 14. Rab1 {[%clk 0:02:23]}  Nd7 {[%clk 0:00:41]} 15. Rfd1 {[%clk 0:02:17]}  Nc5 {[%clk 0:00:40]} 16. Qc2 {[%clk 0:02:13]}  b6 {[%clk 0:00:34]} 17. Nd4 {[%clk 0:02:06]}  Bd7 {[%clk 0:00:30]} 18. f4 {[%clk 0:02:02]}  Be8 {[%clk 0:00:26]} 19. Bf3 {[%clk 0:02:01]}  Rac8 {[%clk 0:00:23]} 20. Qb2 {[%clk 0:01:47]}  Na5 {[%clk 0:00:21]} 21. Qb4 {[%clk 0:01:40]}  Ba4 {[%clk 0:00:13]} 22. Rd2 {[%clk 0:01:31]}  Be8 {[%clk 0:00:10]} 23. Bf2 {[%clk 0:01:18]}  Rb8 {[%clk 0:00:11]} 24. Qb2 {[%clk 0:01:04]}  Nxc4 {[%clk 0:00:10]} 25. Qc2 {[%clk 0:01:04]}  Nxd2 {[%clk 0:00:07]} 26. Qxd2 {[%clk 0:01:05]}  Na4 {[%clk 0:00:07]} 27. Be1 {[%clk 0:01:03]}  b5 {[%clk 0:00:07]} 28. Qe2 {[%clk 0:01:02]}  Nxc3 {[%clk 0:00:04]} 29. Qc2 {[%clk 0:00:58]}  Rbc8 {[%clk 0:00:03]} 30. Rb3 {[%clk 0:00:54]}  b4 {[%clk 0:00:03]} 31. Rxb4 {[%clk 0:00:53]}  Qc5 {[%clk 0:00:03]} 32. Bxc3 {[%clk 0:00:47]}  Qxc3 {[%clk 0:00:04]} 33. Qxc3 {[%clk 0:00:48]}  Rxc3 {[%clk 0:00:05]} 34. Nb3 {[%clk 0:00:46]}  Rc2 {[%clk 0:00:04]} 35. Rb6 {[%clk 0:00:46]}  Rxa2 {[%clk 0:00:03]} 36. Nd4 {[%clk 0:00:44]}  Ra1+ {[%clk 0:00:03]} 37. Kf2 {[%clk 0:00:43]}  Ra4 {[%clk 0:00:04]} 38. Ke3 {[%clk 0:00:42]}  g6 {[%clk 0:00:05]} 39. g4 {[%clk 0:00:34]}  e5 {[%clk 0:00:05]} 40. fxe5 {[%clk 0:00:30]}  dxe5 {[%clk 0:00:06]} 41. Nc2 {[%clk 0:00:28]}  Bb5 {[%clk 0:00:05]} 42. h4 {[%clk 0:00:26]}  Ra2 {[%clk 0:00:05]} 43. Nb4 {[%clk 0:00:24]}  Ra3+ {[%clk 0:00:06]} 44. Kf2 {[%clk 0:00:24]}  Rd2+ {[%clk 0:00:06]} 45. Ke1 {[%clk 0:00:23]}  Rb2 {[%clk 0:00:05]} 0-1


[Site "https://www.chess.com"]

[Event "Titled Tuesday Blitz August 23 Early 2022"]
[White "Mitrabha, Guha"]
[Black "Amgalantengis, Enkh-Amgalan"]
[WhiteFideId "5057000"]
[BlackFideId "4903536"]
[WhiteElo "2499"]
[BlackElo "1719"]
[Result "1-0"]
[Round "01"]
[TimeControl "180+1"]
[Date "2022.08.23"]
[WhiteClock "0:02:04"]
[BlackClock "0:00:10"]

1. c4 {[%clk 0:02:59]}  c6 {[%clk 0:02:58]} 2. Nf3 {[%clk 0:02:58]}  Nf6 {[%clk 0:02:56]} 3. e3 {[%clk 0:02:57]}  d5 {[%clk 0:02:56]} 4. Nc3 {[%clk 0:02:56]}  e6 {[%clk 0:02:54]} 5. b3 {[%clk 0:02:56]}  Nbd7 {[%clk 0:02:53]} 6. Bb2 {[%clk 0:02:56]}  Bd6 {[%clk 0:02:53]} 7. Qc2 {[%clk 0:02:57]}  O-O {[%clk 0:02:53]} 8. Rg1 {[%clk 0:02:56]}  e5 {[%clk 0:02:41]} 9. cxd5 {[%clk 0:02:49]}  cxd5 {[%clk 0:02:40]} 10. Nb5 {[%clk 0:02:49]}  Bb8 {[%clk 0:02:36]} 11. Ba3 {[%clk 0:02:47]}  Re8 {[%clk 0:02:00]} 12. Nd6 {[%clk 0:02:47]}  Bxd6 {[%clk 0:01:55]} 13. Bxd6 {[%clk 0:02:48]}  Ne4 {[%clk 0:01:34]} 14. Ba3 {[%clk 0:02:41]}  Ndf6 {[%clk 0:01:30]} 15. Bb2 {[%clk 0:02:41]}  d4 {[%clk 0:01:17]} 16. Rc1 {[%clk 0:02:20]}  Bf5 {[%clk 0:00:49]} 17. Qc7 {[%clk 0:02:19]}  Ng4 {[%clk 0:00:35]} 18. Qxd8 {[%clk 0:02:07]}  Raxd8 {[%clk 0:00:33]} 19. d3 {[%clk 0:02:07]}  dxe3 {[%clk 0:00:17]} 20. fxe3 {[%clk 0:02:07]}  Nd6 {[%clk 0:00:12]} 21. e4 {[%clk 0:02:07]}  Be6 {[%clk 0:00:11]} 22. h3 {[%clk 0:02:07]}  Ne3 {[%clk 0:00:10]} 23. Be2 {[%clk 0:02:04]}  f6 {[%clk 0:00:10]} 24. Kf2 {[%clk 0:02:04]} 1-0


[Site "https://www.chess.com"]

[Event "Titled Tuesday Blitz August 23 Early 2022"]
[White "Paravyan, David"]
[Black "Siniauski, Artsiom"]
[WhiteFideId "4194985"]
[BlackFideId "13512269"]
[WhiteElo "2569"]
[BlackElo "2139"]
[Result "1-0"]
[Round "01"]
[TimeControl "180+1"]
[Date "2022.08.23"]
[WhiteClock "0:00:24"]
[BlackClock "0:00:02"]

1. e4 {[%clk 0:02:59]}  e6 {[%clk 0:02:55]} 2. d4 {[%clk 0:02:56]}  d5 {[%clk 0:02:55]} 3. Nc3 {[%clk 0:02:57]}  Nf6 {[%clk 0:02:46]} 4. Bg5 {[%clk 0:02:57]}  dxe4 {[%clk 0:02:46]} 5. Nxe4 {[%clk 0:02:58]}  Be7 {[%clk 0:02:47]} 6. Nxf6+ {[%clk 0:02:58]}  gxf6 {[%clk 0:02:48]} 7. Be3 {[%clk 0:02:57]}  f5 {[%clk 0:02:45]} 8. Nf3 {[%clk 0:02:56]}  a6 {[%clk 0:02:43]} 9. Qe2 {[%clk 0:02:55]}  b5 {[%clk 0:02:39]} 10. O-O-O {[%clk 0:02:55]}  Bb7 {[%clk 0:02:39]} 11. Ne5 {[%clk 0:02:56]}  Nd7 {[%clk 0:02:04]} 12. Qh5 {[%clk 0:02:41]}  Nxe5 {[%clk 0:02:02]} 13. dxe5 {[%clk 0:02:42]}  Qb8 {[%clk 0:02:01]} 14. Be2 {[%clk 0:02:24]}  c5 {[%clk 0:01:55]} 15. Bf3 {[%clk 0:02:13]}  a5 {[%clk 0:01:07]} 16. Rd2 {[%clk 0:02:10]}  a4 {[%clk 0:01:05]} 17. Bf4 {[%clk 0:01:15]}  a3 {[%clk 0:00:49]} 18. b3 {[%clk 0:01:15]}  Qa7 {[%clk 0:00:27]} 19. Rhd1 {[%clk 0:01:08]}  Bxf3 {[%clk 0:00:12]} 20. Qxf3 {[%clk 0:01:09]}  h6 {[%clk 0:00:06]} 21. Rd7 {[%clk 0:01:08]}  Qa5 {[%clk 0:00:06]} 22. b4 {[%clk 0:00:56]}  cxb4 {[%clk 0:00:03]} 23. Qc6 {[%clk 0:00:56]}  Kf8 {[%clk 0:00:02]} 24. Kb1 {[%clk 0:00:28]}  Re8 {[%clk 0:00:03]} 25. Qb7 {[%clk 0:00:23]}  b3 {[%clk 0:00:03]} 26. cxb3 {[%clk 0:00:20]}  Qc3 {[%clk 0:00:03]} 27. Bc1 {[%clk 0:00:20]}  Qxe5 {[%clk 0:00:01]} 28. Rxe7 {[%clk 0:00:20]}  Rxe7 {[%clk 0:00:02]} 29. Bxa3 {[%clk 0:00:21]}  Qe4+ {[%clk 0:00:02]} 30. Qxe4 {[%clk 0:00:21]}  fxe4 {[%clk 0:00:03]} 31. Rd8+ {[%clk 0:00:22]}  Kg7 {[%clk 0:00:02]} 32. Bxe7 {[%clk 0:00:22]}  Rh7 {[%clk 0:00:02]} 33. Kc2 {[%clk 0:00:21]}  Kg6 {[%clk 0:00:02]} 34. Rg8+ {[%clk 0:00:20]}  Kf5 {[%clk 0:00:03]} 35. Bd6 {[%clk 0:00:21]}  e5 {[%clk 0:00:02]} 36. Bc5 {[%clk 0:00:20]}  f6 {[%clk 0:00:02]} 37. Be3 {[%clk 0:00:21]}  h5 {[%clk 0:00:02]} 38. h3 {[%clk 0:00:21]}  h4 {[%clk 0:00:02]} 39. a4 {[%clk 0:00:19]}  bxa4 {[%clk 0:00:02]} 40. bxa4 {[%clk 0:00:20]}  Ke6 {[%clk 0:00:03]} 41. Re8+ {[%clk 0:00:19]}  Kd7 {[%clk 0:00:02]} 42. Ra8 {[%clk 0:00:19]}  Ke6 {[%clk 0:00:02]} 43. Ra7 {[%clk 0:00:20]}  Rh8 {[%clk 0:00:01]} 44. Ra6+ {[%clk 0:00:20]}  Kf5 {[%clk 0:00:01]} 45. a5 {[%clk 0:00:21]}  Rc8+ {[%clk 0:00:02]} 46. Kb3 {[%clk 0:00:20]}  Kg6 {[%clk 0:00:02]} 47. Rb6 {[%clk 0:00:20]}  Ra8 {[%clk 0:00:02]} 48. a6 {[%clk 0:00:21]}  Kf7 {[%clk 0:00:02]} 49. a7 {[%clk 0:00:20]}  Rxa7 {[%clk 0:00:01]} 50. Rxf6+ {[%clk 0:00:20]}  Kxf6 {[%clk 0:00:02]} 51. Bxa7 {[%clk 0:00:21]}  Kf5 {[%clk 0:00:03]} 52. Be3 {[%clk 0:00:22]}  Ke6 {[%clk 0:00:02]} 53. Kc4 {[%clk 0:00:23]}  Kf5 {[%clk 0:00:02]} 54. Kd5 {[%clk 0:00:24]} 1-0


[Site "https://www.chess.com"]

[Event "Titled Tuesday Blitz August 23 Early 2022"]
[White "Salinas Herrera, Pablo"]
[Black "Manukyan, Sargis A."]
[WhiteFideId "3407128"]
[BlackFideId "13303970"]
[WhiteElo "2542"]
[BlackElo "2187"]
[Result "1-0"]
[Round "01"]
[TimeControl "180+1"]
[Date "2022.08.23"]
[WhiteClock "0:02:35"]
[BlackClock "0:01:26"]

1. d4 {[%clk 0:03:00]}  d5 {[%clk 0:02:55]} 2. Nf3 {[%clk 0:03:00]}  Nf6 {[%clk 0:02:54]} 3. Bf4 {[%clk 0:03:00]}  Bg4 {[%clk 0:02:51]} 4. Ne5 {[%clk 0:02:59]}  Bf5 {[%clk 0:02:45]} 5. c4 {[%clk 0:02:59]}  e6 {[%clk 0:02:42]} 6. Qb3 {[%clk 0:02:58]}  Qc8 {[%clk 0:02:41]} 7. Nc3 {[%clk 0:02:54]}  Nc6 {[%clk 0:02:31]} 8. e3 {[%clk 0:02:52]}  Bd6 {[%clk 0:02:24]} 9. cxd5 {[%clk 0:02:51]}  exd5 {[%clk 0:02:20]} 10. Bb5 {[%clk 0:02:49]}  O-O {[%clk 0:02:02]} 11. Bxc6 {[%clk 0:02:48]}  bxc6 {[%clk 0:01:58]} 12. Nxc6 {[%clk 0:02:48]}  Qa6 {[%clk 0:01:53]} 13. Bxd6 {[%clk 0:02:44]}  Qxc6 {[%clk 0:01:47]} 14. Bxf8 {[%clk 0:02:44]}  Rxf8 {[%clk 0:01:48]} 15. O-O {[%clk 0:02:44]}  h5 {[%clk 0:01:39]} 16. Rfc1 {[%clk 0:02:41]}  h4 {[%clk 0:01:36]} 17. Nb5 {[%clk 0:02:35]}  Qe6 {[%clk 0:01:27]} 18. Nxc7 {[%clk 0:02:35]}  Qe5 {[%clk 0:01:26]} 19. dxe5 {[%clk 0:02:35]} 1-0


[Site "https://www.chess.com"]

[Event "Titled Tuesday Blitz August 23 Early 2022"]
[White "Samadov, Read"]
[Black "Miszler, Levente"]
[WhiteFideId "13417444"]
[BlackFideId "763276"]
[WhiteElo "2084"]
[BlackElo "1966"]
[Result "0-1"]
[Round "01"]
[TimeControl "180+1"]
[Date "2022.08.23"]
[WhiteClock "0:00:04"]
[BlackClock "0:00:07"]

1. d4 {[%clk 0:03:00]}  Nf6 {[%clk 0:02:52]} 2. c4 {[%clk 0:03:00]}  e6 {[%clk 0:02:45]} 3. Nf3 {[%clk 0:03:00]}  d5 {[%clk 0:02:43]} 4. g3 {[%clk 0:03:00]}  Be7 {[%clk 0:02:39]} 5. Bg2 {[%clk 0:03:00]}  O-O {[%clk 0:02:40]} 6. O-O {[%clk 0:03:00]}  c6 {[%clk 0:02:40]} 7. Qc2 {[%clk 0:02:59]}  Nbd7 {[%clk 0:02:39]} 8. Rd1 {[%clk 0:02:56]}  Ne4 {[%clk 0:02:27]} 9. Nc3 {[%clk 0:02:55]}  f5 {[%clk 0:02:26]} 10. b3 {[%clk 0:02:47]}  Ndf6 {[%clk 0:02:22]} 11. Ne5 {[%clk 0:02:44]}  Bb4 {[%clk 0:02:17]} 12. Bb2 {[%clk 0:02:43]}  Bd7 {[%clk 0:02:12]} 13. a3 {[%clk 0:02:39]}  Be7 {[%clk 0:02:10]} 14. e3 {[%clk 0:02:23]}  Be8 {[%clk 0:02:00]} 15. Ne2 {[%clk 0:02:21]}  Bh5 {[%clk 0:01:57]} 16. f3 {[%clk 0:02:20]}  Nd6 {[%clk 0:01:53]} 17. Nf4 {[%clk 0:02:20]}  Be8 {[%clk 0:01:46]} 18. Nxe6 {[%clk 0:02:20]}  Qc8 {[%clk 0:01:44]} 19. Nxf8 {[%clk 0:02:20]}  Bxf8 {[%clk 0:01:44]} 20. cxd5 {[%clk 0:02:04]}  Nxd5 {[%clk 0:01:43]} 21. Qe2 {[%clk 0:02:02]}  Qe6 {[%clk 0:01:33]} 22. e4 {[%clk 0:02:01]}  Nf6 {[%clk 0:01:27]} 23. Nc4 {[%clk 0:01:41]}  fxe4 {[%clk 0:01:06]} 24. Nxd6 {[%clk 0:01:39]}  Bxd6 {[%clk 0:01:07]} 25. fxe4 {[%clk 0:01:23]}  Bh5 {[%clk 0:01:06]} 26. Qc4 {[%clk 0:01:23]}  Qxc4 {[%clk 0:01:05]} 27. bxc4 {[%clk 0:01:23]}  Bxd1 {[%clk 0:01:04]} 28. Rxd1 {[%clk 0:01:24]}  Rd8 {[%clk 0:01:00]} 29. Bf3 {[%clk 0:01:19]}  Bc7 {[%clk 0:00:55]} 30. e5 {[%clk 0:01:18]}  Nd7 {[%clk 0:00:52]} 31. e6 {[%clk 0:01:18]}  Nf6 {[%clk 0:00:51]} 32. d5 {[%clk 0:01:19]}  Kf8 {[%clk 0:00:50]} 33. a4 {[%clk 0:01:06]}  Ke7 {[%clk 0:00:49]} 34. Ba3+ {[%clk 0:01:03]}  Bd6 {[%clk 0:00:50]} 35. Bb2 {[%clk 0:00:46]}  Bc5+ {[%clk 0:00:47]} 36. Kg2 {[%clk 0:00:46]}  cxd5 {[%clk 0:00:42]} 37. cxd5 {[%clk 0:00:47]}  b6 {[%clk 0:00:42]} 38. g4 {[%clk 0:00:43]}  h6 {[%clk 0:00:41]} 39. h4 {[%clk 0:00:43]}  Bd6 {[%clk 0:00:39]} 40. g5 {[%clk 0:00:41]}  hxg5 {[%clk 0:00:39]} 41. hxg5 {[%clk 0:00:42]}  Ne8 {[%clk 0:00:39]} 42. Be4 {[%clk 0:00:41]}  Bf4 {[%clk 0:00:39]} 43. g6 {[%clk 0:00:31]}  Nf6 {[%clk 0:00:39]} 44. Kf3 {[%clk 0:00:29]}  Bd6 {[%clk 0:00:37]} 45. Rh1 {[%clk 0:00:28]}  Rf8 {[%clk 0:00:35]} 46. Bxf6+ {[%clk 0:00:22]}  Rxf6+ {[%clk 0:00:35]} 47. Ke3 {[%clk 0:00:23]}  Be5 {[%clk 0:00:31]} 48. Rh8 {[%clk 0:00:21]}  Rf8 {[%clk 0:00:31]} 49. Rh1 {[%clk 0:00:19]}  Rc8 {[%clk 0:00:29]} 50. Rf1 {[%clk 0:00:18]}  Bf6 {[%clk 0:00:28]} 51. Bd3 {[%clk 0:00:16]}  Kd6 {[%clk 0:00:25]} 52. Be4 {[%clk 0:00:16]}  Ke7 {[%clk 0:00:25]} 53. Bd3 {[%clk 0:00:14]}  Kd6 {[%clk 0:00:26]} 54. Rxf6 {[%clk 0:00:11]}  gxf6 {[%clk 0:00:26]} 55. Ke4 {[%clk 0:00:12]}  Ke7 {[%clk 0:00:18]} 56. Kf5 {[%clk 0:00:09]}  Rg8 {[%clk 0:00:10]} 57. d6+ {[%clk 0:00:08]}  Kxd6 {[%clk 0:00:09]} 58. Kxf6 {[%clk 0:00:09]}  Rf8+ {[%clk 0:00:08]} 59. Kg7 {[%clk 0:00:08]}  Ke7 {[%clk 0:00:08]} 60. Bc4 {[%clk 0:00:06]}  Rf4 {[%clk 0:00:08]} 61. Bb3 {[%clk 0:00:06]}  Rf3 {[%clk 0:00:08]} 62. Bd5 {[%clk 0:00:06]}  Rf5 {[%clk 0:00:07]} 63. Bb7 {[%clk 0:00:06]}  Rf2 {[%clk 0:00:06]} 64. Bc8 {[%clk 0:00:04]}  Rg2 {[%clk 0:00:05]} 65. Bd7 {[%clk 0:00:04]}  Rg3 {[%clk 0:00:05]} 66. Kh7 {[%clk 0:00:05]}  Rh3+ {[%clk 0:00:05]} 67. Kg8 {[%clk 0:00:05]}  Rg3 {[%clk 0:00:05]} 68. g7 {[%clk 0:00:05]}  Kf6 {[%clk 0:00:05]} 69. e7 {[%clk 0:00:03]}  Rxg7+ {[%clk 0:00:06]} 70. Kf8 {[%clk 0:00:04]}  Rxe7 {[%clk 0:00:07]} 71. Bb5 {[%clk 0:00:04]}  Re5 {[%clk 0:00:07]} 0-1


[Site "https://www.chess.com"]

[Event "Titled Tuesday Blitz August 23 Early 2022"]
[White "Shirov, Alexei"]
[Black "D`Arruda, Ricardo D."]
[WhiteFideId "2209390"]
[BlackFideId "100692"]
[WhiteElo "2678"]
[BlackElo "2517"]
[Result "1-0"]
[Round "01"]
[TimeControl "180+1"]
[Date "2022.08.23"]
[WhiteClock "0:01:45"]
[BlackClock "0:00:01"]

1. e4 {[%clk 0:03:00]}  c5 {[%clk 0:02:59]} 2. Nf3 {[%clk 0:02:59]}  Nc6 {[%clk 0:02:59]} 3. d4 {[%clk 0:02:58]}  cxd4 {[%clk 0:02:59]} 4. Nxd4 {[%clk 0:02:58]}  e5 {[%clk 0:02:59]} 5. Nb5 {[%clk 0:02:57]}  a6 {[%clk 0:02:59]} 6. Nd6+ {[%clk 0:02:56]}  Bxd6 {[%clk 0:02:59]} 7. Qxd6 {[%clk 0:02:55]}  Qe7 {[%clk 0:03:00]} 8. Qd1 {[%clk 0:02:54]}  Nf6 {[%clk 0:02:59]} 9. Nc3 {[%clk 0:02:53]}  d6 {[%clk 0:02:59]} 10. Bg5 {[%clk 0:02:49]}  Be6 {[%clk 0:02:59]} 11. Bd3 {[%clk 0:02:48]}  h6 {[%clk 0:02:57]} 12. Bh4 {[%clk 0:02:47]}  O-O {[%clk 0:02:55]} 13. O-O {[%clk 0:02:42]}  g5 {[%clk 0:02:55]} 14. Bg3 {[%clk 0:02:41]}  Rfd8 {[%clk 0:02:52]} 15. h4 {[%clk 0:02:35]}  Kg7 {[%clk 0:02:51]} 16. Qd2 {[%clk 0:02:32]}  Nh5 {[%clk 0:02:51]} 17. Nd5 {[%clk 0:02:23]}  Bxd5 {[%clk 0:02:28]} 18. exd5 {[%clk 0:02:23]}  Nd4 {[%clk 0:02:25]} 19. c3 {[%clk 0:02:23]}  Nb5 {[%clk 0:02:25]} 20. Rae1 {[%clk 0:02:22]}  gxh4 {[%clk 0:02:10]} 21. Bh2 {[%clk 0:02:21]}  Qg5 {[%clk 0:02:10]} 22. f4 {[%clk 0:02:17]}  Nxf4 {[%clk 0:02:01]} 23. Bxf4 {[%clk 0:02:13]}  exf4 {[%clk 0:02:01]} 24. Rxf4 {[%clk 0:02:12]}  Re8 {[%clk 0:01:55]} 25. Ref1 {[%clk 0:02:11]}  Re7 {[%clk 0:01:46]} 26. Qf2 {[%clk 0:02:10]}  Rf8 {[%clk 0:01:43]} 27. Rxh4 {[%clk 0:01:57]}  Qe3 {[%clk 0:01:36]} 28. Rg4+ {[%clk 0:01:56]}  Kh8 {[%clk 0:01:34]} 29. Bxb5 {[%clk 0:01:53]}  axb5 {[%clk 0:01:30]} 30. Qxe3 {[%clk 0:01:52]}  Rxe3 {[%clk 0:01:30]} 31. Rf2 {[%clk 0:01:52]}  Kh7 {[%clk 0:00:35]} 32. Rb4 {[%clk 0:01:50]}  Rd3 {[%clk 0:00:23]} 33. Rxb5 {[%clk 0:01:49]}  Kg6 {[%clk 0:00:14]} 34. c4 {[%clk 0:01:48]}  f5 {[%clk 0:00:01]} 35. Rxb7 {[%clk 0:01:45]} 1-0


[Site "https://www.chess.com"]